Cogmind - Beta 13 @@@ ROGUE MODE // 2024.05.15 @ 17:06:09 Player: kicktown Result: Destroyed by Z6-R5F(R) with Subdweller Beam Cannon Performance ------------- Evolutions (0) 0 Regions Visited (2) 400 Robots Destroyed (23) 115 Value Destroyed (369) 369 Prototype IDs (0) 0 Alien Tech Used (0) 0 Bonus (0) 0 TOTAL SCORE: 884 Bonus ------- None Cogmind --------- Core Integrity 0/250 Matter 270/300 Energy 111/125 System Corruption 0% Temperature Cool (9) Movement Treading (240) Ox1 Location -10/Subcaves Parts ------- > --- POWER (1) -------- Light Ion Engine > --- PROPULSION (2) --- Light Treads Wheel > --- UTILITY (2) ------ Large Storage Unit Improved Terrain Scanner > --- WEAPON (2) ------- Rocket Launcher Maul > --- INVENTORY (15) --- Light Ion Engine Light Ion Engine Light Treads Aluminum Leg Aluminum Leg Compact Wheel High-capacity Matter Pod (200) Visual Processing Unit Sensor Array Seismic Detector Light Armor Plating Light Armor Plating Medium Laser Subdweller Machine Gun Datajack Peak State ------------ > --- POWER ------------ Light Ion Engine > --- PROPULSION ------- Wheel Compact Wheel > --- UTILITY ---------- Large Storage Unit Improved Terrain Scanner > --- WEAPON ----------- Rocket Launcher Maul > --- INVENTORY -------- Light Ion Engine Light Ion Engine Light Treads Light Treads Aluminum Leg Aluminum Leg High-capacity Matter Pod Visual Processing Unit Sensor Array Seismic Detector Light Armor Plating Light Armor Plating Medium Laser Datajack [Rating: 12] Favorites ----------- Power Light Ion Engine Engine Light Ion Engine Propulsion Wheel Treads Light Treads Wheel Wheel Utility Signal Interpreter Device Improved Terrain Scanner Storage Large Storage Unit Processor Signal Interpreter Protection Light Armor Plating Weapon Maul Energy Gun Small Laser Ballistic Gun Light Assault Rifle Launcher Rocket Launcher Special Weapon Mining Laser Impact Weapon Maul Special Melee Weapon Datajack Build | -11 -10 -10 ------- Run | Yrd Mat Sub Slots Evolved . | . . . Power . | . . . Propulsion . | . . . Utility . | . . . Weapon . | . . . Parts Attached 43 | 9 31 3 Power 6 | 1 5 . Engine 6 | 1 5 . Core . | . . . Reactor . | . . . Propulsion 19 | 3 15 1 Treads 6 | 1 4 1 Leg . | . . . Wheel 13 | 2 11 . Hover . | . . . Flight . | . . . Utility 11 | 2 7 2 Device 5 | 1 3 1 Storage 3 | 1 2 . Processor 1 | . 1 . Hackware . | . . . Protection 2 | . 1 1 Artifact . | . . . Weapon 7 | 3 4 . Energy Gun 1 | 1 . . Energy Cannon . | . . . Ballistic Gun 2 | 1 1 . Ballistic Cannon . | . . . Launcher 1 | . 1 . Special Weapon 1 | 1 . . Impact Weapon 1 | . 1 . Slashing Weapon . | . . . Piercing Weapon . | . . . Special Melee Weapon 1 | . 1 . Unidentified Prototypes . | . . . Parts Lost 7 | . 7 . Power 1 | . 1 . Propulsion 3 | . 3 . Utility 2 | . 2 . Weapon 1 | . 1 . Highest Loss Streak 5 | . 5 . To Critical Strikes . | . . . Average Slot Usage (%) 93 | . 93 100 Engine 12 | . 12 14 Treads 2 | . 2 . Wheel 24 | . 23 28 Device 8 | . 7 14 Storage 7 | . 6 14 Processor 10 | . 11 . Ballistic Gun 2 | . 2 . Launcher 8 | . 7 14 Impact Weapon 13 | . 13 14 Special Melee Weapon 2 | . 2 . Naked Turns . | . . . Heaviest Build 31 | 11 30 31 Greatest Support 32 | 32 26 26 Greatest Overweight (x) 1 | . 1 1 Average Overweight (x) . | . . 1 Largest Inventory Capacity 15 | 8 15 15 Average Capacity 8 | 7 8 15 Most Carried 15 | 8 15 15 Average Carried 7 | 5 7 14 Final Capacity 15 | 8 15 15 Final Carried 15 | 8 15 15 Class Distribution -------------------- 60% | Mutant 39% | Scavenger-Mutant Dominant Class ---------------- Mutant | -10/Materials Mutant | -10/Subcaves Resources | -11 -10 -10 ----------- Run | Yrd Mat Sub Matter Collected 866 | 298 568 . Remotely . | . . . Salvage Created 736 | 108 628 . Parts 35 | 10 25 . Haulers Intercepted 1 | . 1 . Recyclers Shooed 3 | 1 2 . Parts Field Recycled . | . . . Retrieved Matter . | . . . Parts Self-Destructed 7 | . . 7 Prevented . | . . . Kills | -11 -10 -10 ------- Run | Yrd Mat Sub Combat Hostiles Destroyed 6 | . 6 . Melee 1 | . 1 . Classes Destroyed 7 | 2 5 . Worker 5 | . 5 . Tunneler 3 | 3 . . Hauler 1 | . 1 . Recycler 5 | 1 4 . Operator 1 | . 1 . Watcher 2 | . 2 . Grunt 6 | . 6 . Best Kill Streak 6 | 4 6 . Combat Bots Only 3 | . 3 . Max Kills in Single Turn 2 | 1 2 . Gunslinging . | . . . Exploded . | . . . Melee 1 | . 1 . Uniques/NPCs Destroyed . | . . . Combat | -11 -10 -10 -------- Run | Yrd Mat Sub Hostile Shots Fired 86 | . 83 3 Missed 30 | . 30 . Damage Taken 801 | . 718 83 Core 272 | . 217 55 Absorbed by Shields . | . . . Core Remaining (%) 100 | 100 . . Volleys Fired 18 | 8 10 . Largest 2 | 2 1 . Hottest 60 | 60 33 . Shots Fired 26 | 16 10 . Gun 21 | 16 5 . Cannon . | . . . Launcher 5 | . 5 . Special . | . . . Kinetic 13 | 8 5 . Thermal 8 | 8 . . Explosive 5 | . 5 . Electromagnetic . | . . . Robot Hit Streak 12 | 7 12 . Robot Miss Streak 2 | 2 1 . Penetration Max . | . . . Secondary Targets . | . . . Shots Hit Robots 50 | 12 38 . Core Hits 17 | 6 11 . Critical Kills 2 | . 2 . Critical Parts Destroyed 5 | . 5 . Critical Strikes 7 | . 7 . Smash 7 | . 7 . Melee Attacks 46 | . 46 . Impact 40 | . 40 . Slashing . | . . . Piercing . | . . . Sneak Attacks 13 | . 13 . Combat Hostiles . | . . . Follow-up Attacks . | . . . Damage Inflicted 1693 | 137 1556 . Guns 181 | 137 44 . Cannons . | . . . Explosions 180 | . 180 . Melee 1332 | . 1332 . Ramming . | . . . Kinetic 91 | 47 44 . Thermal 90 | 90 . . Explosive 180 | . 180 . Electromagnetic . | . . . Impact 1332 | . 1332 . Slashing . | . . . Piercing . | . . . Highest Corruption . | . . . Average Corruption . | . . . Corruption Purged . | . . . Corruption Blocked . | . . . Overload Shots . | . . . Overflow Damage 465 | . 465 . Projectiles . | . . . Explosions 22 | . 22 . Melee 443 | . 443 . Knockbacks 7 | . 7 . Impact 7 | . 7 . Kinetic . | . . . Secondary . | . . . Self-Inflicted Damage 58 | . 58 . Shots 2 | . 2 . Rammed . | . . . Targets Rammed . | . . . Kicked . | . . . Crushed . | . . . Highest Temperature 40 | 40 6 . Average Temperature 20 | 21 6 . Received Heat Transfer 414 | . 387 27 Siege Activations . | . . . Robots Corrupted . | . . . Combat Hostiles . | . . . Parts Fried 8 | . 8 . Impact Corruptions 18 | . 18 . Robots Melted . | . . . Combat Hostiles . | . . . Parts Melted 1 | 1 . . Heat Transferred 200 | 200 . . Parts Sabotaged . | . . . Parts Stolen . | . . . Parts Stripped . | . . . Power Chain Reactions . | . . . Alert | -11 -10 -10 ------- Run | Yrd Mat Sub Peak Influence 145 | 20 145 . Initial 13 | . 13 . Average 67 | 9 74 . Maximum Alert Level . | . . . Low Security (%) 100 | 100 100 . Level 1 . | . . . Level 2 . | . . . Level 3 . | . . . Level 4 . | . . . Level 5 . | . . . High Security . | . . . Max Security . | . . . Squads Dispatched . | . . . Investigation . | . . . Extermination . | . . . Reinforcement . | . . . Assault . | . . . Garrison . | . . . Intercept . | . . . Searches Triggered . | . . . Construction Impeded . | . . . Haulers Reinforced . | . . . Active Scanning Responses . | . . . Cargo Convoy Interrupts . | . . . Stealth | -11 -10 -10 --------- Run | Yrd Mat Sub Distress Signals . | . . . Communications Jammed . | . . . Distress Signals . | . . . Times Spotted 12 | . 10 2 Peak Tracking Total 5 | . 5 1 Tactical Retreats . | . . . Traps | -11 -10 -10 ------- Run | Yrd Mat Sub Traps Triggered . | . . . Indirectly . | . . . Trap Hack Attempts . | . . . Triggered . | . . . Disarmed . | . . . Reprogrammed . | . . . Reused . | . . . Traps Extracted . | . . . Installed . | . . . Triggered . | . . . Machines | -11 -10 -10 ---------- Run | Yrd Mat Sub Machines Disabled 2 | . 2 . Max in Single Turn 1 | . 1 . Machines Repaired . | . . . Machines Dismantled . | . . . Machines Sabotaged . | . . . Overloaded Fab Kills . | . . . Hacking | -11 -10 -10 --------- Run | Yrd Mat Sub Machines Accessed 5 | . 5 . Terminals 3 | . 3 . Fabricators . | . . . Repair Stations . | . . . Recycling Units 2 | . 2 . Scanalyzers . | . . . Garrison Access . | . . . Total Hacks 10 | . 10 . Successful 5 | . 5 . Failed 5 | . 5 . Catastrophic 2 | . 2 . Database Lockouts . | . . . Manual 5 | . 5 . Terminals 5 | . 5 . Fabricators . | . . . Repair Stations . | . . . Recycling Units 5 | . 5 . Scanalyzers . | . . . Garrison Access . | . . . Terminal Hacks 1 | . 1 . Zone Layout 1 | . 1 . Fabricator Hacks . | . . . Repair Station Hacks . | . . . Recycling Unit Hacks 2 | . 2 . Retrieve Components 2 | . 2 . Scanalyzer . | . . . Garrison Access Hacks . | . . . Unauthorized Hacks 2 | . 2 . Terminals . | . . . Fabricators . | . . . Repair Stations . | . . . Recycling Units 2 | . 2 . Reject 2 | . 2 . Scanalyzers . | . . . Garrison Access . | . . . Data Cores Recovered . | . . . Used . | . . . Hacking Detections 4 | . 4 . Full Trace Events 1 | . 1 . Feedback Events . | . . . Feedback Blocked . | . . . Robot Schematics Acquired . | . . . Robots Built . | . . . Authchips . | . . . Time . | . . . Total Robot Build Rating . | . . . Part Schematics Acquired . | . . . Parts Built . | . . . Authchips . | . . . Time . | . . . Total Part Build Rating . | . . . Parts Repaired . | . . . Time . | . . . Parts Recycled . | . . . Recycled Matter . | . . . Retrieved Matter . | . . . Retrieved Components 17 | . 17 . Parts Scanalyzed . | . . . Part Schematics Acquired . | . . . Parts Damaged . | . . . Bothacking | -11 -10 -10 ------------ Run | Yrd Mat Sub Used RIF Installer . | . . . Robots Hacked 4 | . 4 . Non-combat 4 | . 4 . Combat . | . . . Robot Hacks Applied 5 | . 5 . no_distress 3 | . 3 . find_recycling 2 | . 2 . Relay Couplers Released . | . . . Fabnet Peak Effective % . | . . . Robots Rewired . | . . . Allies Hacked . | . . . Hacks Repelled . | . . . Allies | -11 -10 -10 -------- Run | Yrd Mat Sub Total Allies . | . . . Largest Group . | . . . Highest-Rated Group . | . . . Highest-Rated Ally . | . . . Total Orders . | . . . Ally Attacks . | . . . Total Damage . | . . . Kills . | . . . Allies Corrupted . | . . . Allies Melted . | . . . Intel | -11 -10 -10 ------- Run | Yrd Mat Sub Robot Analysis Total . | . . . Derelict Logs Recovered . | . . . Drone Launches . | . . . Drone Recoveries . | . . . Exploration | -11 -10 -10 ------------- Run | Yrd Mat Sub Turns Passed 1277 | 125 1084 68 Spaces Moved 990 | 62 875 53 Core 4 | 1 3 . Treads 55 | 27 28 . Legs . | . . . Wheels 931 | 34 844 53 Hover . | . . . Flight . | . . . Fastest Speed 50 | 50 80 105 Average Speed 98 | 125 95 105 Slowest Speed 160 | 160 160 105 Overloaded Moves . | . . . Propulsion Burnouts . | . . . Robots Hopped . | . . . Cave-ins Triggered . | . . . Exploration Rate (%) 27 | 4 72 6 Regions Visited 2 Branch Regions 1 Pre-discovered Areas . | . . . Known Exits Taken 1 | . 1 . Unknown Exits Taken 1 | 1 . . Scrap Searched . | . . . Spaces Dug 16 | . 16 . Terrain Destroyed 33 | . 33 . Melee 7 | . 7 . Projectile . | . . . AOE 26 | . 26 . Terrain Rammed . | . . . Walls Destroyed . | . . . Machines Disabled . | . . . Actions | -11 -10 -10 --------- Run | Yrd Mat Sub Total 1180 | 92 1025 63 Wait 39 | 3 30 6 Move 988 | 61 874 53 Hop . | . . . Pick Up 28 | 9 18 1 Fast Attach 16 | 8 8 . Attach 3 | . 3 . Detach 2 | . 2 . Swap 24 | 1 20 3 Drop 16 | 2 14 . Fire 18 | 8 10 . Melee 46 | . 46 . Ram . | . . . Kick . | . . . Crush . | . . . Escape Stasis . | . . . Rewire . | . . . Trap . | . . . Miscellaneous . | . . . Route ------- -11/Scrapyard -10/Materials (discovered 4 exits: *Mat x2 / *Min / *Sub) -10/Subcaves History --------- Turn | Location | Event 35 | -11/Scrapyard | Discovered new exit (range 13) 126 | -11/Scrapyard | Entered Materials 199 | -10/Materials | Discovered new exit (range 16) 305 | -10/Materials | Discovered new exit (range 16) 355 | -10/Materials | Identified exit to Materials 541 | -10/Materials | Core integrity fell below 50% 544 | -10/Materials | Lost 5 parts (1p2n1u1w) 573 | -10/Materials | Core integrity fell below 20% 668 | -10/Materials | Discovered exit to Materials (range 8) 881 | -10/Materials | Discovered new exit (range 8) 890 | -10/Materials | Identified exit to Mines 904 | -10/Materials | Identified exit to Subcaves 1210 | -10/Materials | Entered Subcaves 1236 | -10/Subcaves | Shifting Twisted Machinery released Sub. Machine Gun 1236 | -10/Subcaves | Build established: Mutant 1276 | -10/Subcaves | Ambushed by swarm of Subdwellers 1278 | -10/Subcaves | Destroyed by Z6-R5F(R) with Subdweller Beam Cannon Last Messages --------------- AMBIENT_HEAT=-10 GOAL=ESCAPE 01211_ 47-ABU(h): "Hey you don't look like the usual menacing locals. I'm on point searching for advanced tech we've heard is being developed in secret down here, seen anything like that?" 01212_ 47-ABU(h) drops a Scrap Shield: "Protect yourself with this!" 01214_ Discarded Signal Interpreter. Sub. Machine Gun falls loose from the Twisted Machinery. 01239_ Acquired Sub. Machine Gun. A mess of Twisted Machinery falls from the cavern ceiling. 07-J4H(R) comes tumbling into view. 01276_ 47-ABU(h): "The Subs are coming!" 01276_ HV Slug penetrates Wall. 01278_ Z6-R5F(R) emerges from the Twisted Machinery. Map ----- +----------------------------------------------------+ | ??????????????? #### #???????????????? | | ??????????????? #####?## #?????#???#?????? | | ???????????????? #???#?## ##??????????????? | | ??????????????? ?????## ##???????????????? | | ???????????????? ??????# #????????????????? | | ???????????????? ????????## #????????????????? | | ??????????????????????????# ##??????#?????????? | | ??????????????????????????# ####??????????????? | | ??????????????????????????## ##????????#????? | | ???????????????????????#???# #?????????????? | | ??????????????????????????# # ##?????????????? | | ??????????????????????????# # #??????????????? | | ???????????????#?????????? ## #??????????????? | | ?????????????????????#? ?## ?# #??????????????? | | ??????????????????????????#### #??????????????? | | ??????????????????????????# ##??????????????? | | ?????????????????????????### ##??????????????? | | ???????????????????#?????## #??????????????? | | ?????????????????????????# #??????????????? | | ????????????????????????## #???#?#????????? | | ???????????????????????## h #????#?????????? | | ???????????????????????"" #??????????????? | | ???????????????????????#"R ## #?????????????? | | ??????????????????????##R ### ##?????????????? | | ??????????????????????# #??##????????#?????? | | ??????????????????????# @ ##??????????????????? | | ??????????????????????## #?#?????????????????? | | ???????????????????????# ##???????????????????? | | ??????????#????????????# ##????????????????????? | | ???????????????????????# #???? ????????????????? | | ???????????????????????# #?????????????????????? | | ???????????????????????# #?????????????????????? | | ???????????????????????# #?????????????????????? | | ???????????????????#???# ?????????????????????? | | ???????????????????????# ?????????????????????? | | ???????????????????????# ?????????????????????? | | ????????????????????#??# ?????????????????????? | | ???????????????????????# ?????????????????????? | | ???????????????????????# ?????????????????????? | | ???????????????????????? ?????????????????????? | | ???????????????????????? ?????????????????????? | | ????????????????????????????????????????????????? | | ????????????????????????????????????????????????? | | ????????????????????????????????????????????????? | | ????????????????????????????????????????????????? | | ????????????????????????????????????????????????? | | ????????????????????????????????????????????????? | | ????????????????????????????????????????????????? | | ????????????????????????????????????????????????? | | ????????????????????????????????????????????????? | +----------------------------------------------------+ Best States ------------- Heat Dissipation 25 Energy Generation 10 Energy Capacity 250 Matter Stores 300 Matter Capacity 300 Sight Range 16 Robot Scan Range 14 Terrain Scan Range 16 Terrain Scan Density 10 Armor Coverage 150 Evasion (%) 44 Recoil Reduction 2 Item Schematics ----------------- None Robot Schematics ------------------ None Fabricated ------------ Nothing Alien Tech Used ----------------- None Achievements -------------- None Challenges ------------ None Game ------ Seed GaussNavigationAxe Manual? 0 Play Time 00:23:56 Cumulative 65.0 hours Start 2024.05.15 @ 16:38:37 End 2024.05.15 @ 17:06:09 Sessions 1 Manual Loads 0 Difficulty Rogue Special Mode None Game No. 59 Rogue 59 Adventurer 0 Explorer 0 Win Type - Total 0 Types 0/0/0/0/0/0/0/0/0 Lore% 27 Gallery% 47 Achievement% 33 Wizard Run 0 Options --------- Layout 1 ASCII 0 Keyboard 0 Movement Mouse Keybinds 0 Fullscreen 2 Font 24/Smallcaps Map View 50x35 Zoom Use 0% Tactical HUD 1 Map Filters NONE Filters NONE Steam 1 RUN: 6dc52ca4-3bbf-49a1-8edf-e57c1c76527f